bitfinex/quotes_BTCUSD_20241003
["timestamp","ask_amount","ask_price","bid_price","bid_amount"]
[1727917844194,0.32429749,61149.0,61148.0,0.000818]
[1727917844423,0.32529749,61149.0,61148.0,0.000818]
[1727917844882,0.32429749,61149.0,61148.0,0.000818]
[1727917845349,0.32529749,61149.0,61148.0,0.000818]
[1727917845585,0.39881052,61149.0,61148.0,0.000818]
[1727917845867,0.2782888,61149.0,61148.0,0.000818]
[1727917846340,0.40081791,61149.0,61148.0,0.000818]
[1727917846585,0.2762888,61149.0,61148.0,0.000818]
[1727917846827,0.37630984,61149.0,61148.0,0.000818]
[1727917847338,0.37630984,61149.0,61148.0,0.076318]
[1727917847339,0.2782888,61149.0,61148.0,0.076318]
[1727917847849,0.2782888,61149.0,61148.0,0.11862304]
[1727917847850,0.1782888,61149.0,61148.0,0.11862304]
[1727917848547,0.1772888,61149.0,61148.0,0.11862304]
[1727917848803,0.1772888,61149.0,61148.0,0.074918]
[1727917848804,0.1752888,61149.0,61148.0,0.074918]
[1727917849077,0.1752888,61149.0,61148.0,0.076918]
[1727917850499,0.20092993,61149.0,61148.0,0.076918]
[1727917854180,0.1752888,61149.0,61148.0,0.078554]
[1727917855754,0.1752888,61149.0,61148.0,0.12108264]
[1727917856006,0.0117548,61149.0,61148.0,0.12108264]
[1727917856226,0.1752888,61149.0,61148.0,0.12108264]
[1727917856439,0.1752888,61149.0,61148.0,0.078554]
[1727917860978,0.1752888,61149.0,61148.0,0.003636]
[1727917861810,0.1752888,61149.0,61148.0,0.001636]
[1727917862027,0.1772888,61149.0,61148.0,0.001636]
[1727917862783,0.2772888,61149.0,61148.0,0.001636]
[1727917863024,0.34993651,61149.0,61148.0,0.001636]
[1727917863245,0.43435541,61149.0,61148.0,0.001636]
[1727917863476,0.43535541,61149.0,61148.0,0.001636]
[1727917863697,0.30293081,61149.0,61148.0,0.001636]
[1727917863928,0.37543936,61149.0,61148.0,0.001636]
[1727917864144,0.37643936,61149.0,61148.0,0.001636]
[1727917864366,0.35079735,61149.0,61148.0,0.001636]
[1727917864584,0.34979735,61149.0,61148.0,0.001636]
[1727917865047,0.41796425,61149.0,61148.0,0.001636]
[1727917865922,0.41878225,61149.0,61148.0,0.001636]
[1727917866850,0.2791068,61149.0,61148.0,0.001636]
[1727917867287,0.37823883,61149.0,61148.0,0.001636]
[1727917867963,0.3047512,61149.0,61148.0,0.001636]
[1727917868613,0.35259295,61149.0,61148.0,0.001636]
[1727917869304,0.3280956,61149.0,61148.0,0.001636]
[1727917869554,0.2791068,61149.0,61148.0,0.001636]
[1727917870072,0.35259295,61149.0,61148.0,0.001636]
[1727917870274,0.2791068,61149.0,61148.0,0.001636]
[1727917870927,0.35261729,61149.0,61148.0,0.001636]
[1727917871391,0.37709829,61149.0,61148.0,0.001636]
[1727917871605,0.40274273,61149.0,61148.0,0.001636]
[1727917873445,0.53790909,61149.0,61148.0,0.001636]
[1727917874395,0.41427316,61149.0,61148.0,0.001636]
[1727917874599,0.2791068,61149.0,61148.0,0.001636]
[1727917874832,0.37721408,61149.0,61148.0,0.175536]
[1727917875065,0.1791068,61149.0,61148.0,0.175536]
[1727917875316,0.1791068,61149.0,61148.0,0.21778284]
[1727917875504,0.0155728,61149.0,61148.0,0.21778284]
[1727917875732,0.0135728,61149.0,61148.0,0.21778284]
[1727917875956,0.1761068,61149.0,61148.0,0.21778284]
[1727917876673,0.1771068,61149.0,61148.0,0.21978284]
[1727917876926,0.1781068,61149.0,61148.0,0.21978284]
[1727917877165,0.0145728,61149.0,61148.0,0.38331984]
[1727917877612,0.002818,61149.0,61148.0,0.21978284]
[1727917877834,0.166352,61149.0,61148.0,0.177536]
[1727917878055,0.01352534,61149.0,61148.0,0.175536]
[1727917878298,0.002818,61149.0,61148.0,0.177536]
[1727917878726,0.166352,61149.0,61148.0,0.177536]
[1727917878938,0.02845745,61149.0,61148.0,0.177536]
[1727917879160,0.01452321,61149.0,61148.0,0.177536]
[1727917879377,0.002818,61149.0,61148.0,0.177536]
[1727917880732,0.002818,61149.0,61148.0,0.43586174]
[1727917880974,0.002818,61149.0,61148.0,0.49165174]
[1727917881193,0.000818,61157.0,61156.0,0.163516]
[1727917881417,0.000818,61157.0,61156.0,0.20669]
[1727917881645,0.000818,61157.0,61156.0,0.3094472]
[1727917881933,0.000818,61157.0,61156.0,0.370206]
[1727917882382,0.001818,61157.0,61156.0,0.372206]
[1727917882605,0.000818,61157.0,61156.0,0.20669]
[1727917882830,0.164331,61157.0,61156.0,0.2600643]
[1727917883059,0.001818,61157.0,61156.0,0.20869]
[1727917883499,0.002818,61157.0,61156.0,0.20869]
[1727917883730,0.002818,61157.0,61156.0,0.372206]
[1727917883981,0.002818,61157.0,61156.0,0.53992357]
[1727917884209,0.000818,61169.0,61168.0,0.1779]
[1727917884471,0.164299,61169.0,61168.0,0.1779]
[1727917884910,0.000818,61169.0,61168.0,0.1779]
[1727917885137,0.164299,61169.0,61168.0,0.1779]
[1727917885361,0.164299,61169.0,61168.0,0.198969]
[1727917885837,0.164299,61169.0,61168.0,0.1779]
[1727917886314,0.166299,61169.0,61168.0,0.1849]
[1727917886751,0.165299,61169.0,61168.0,0.1849]
[1727917887222,0.19093034,61169.0,61168.0,0.1849]
[1727917887456,0.36324884,61169.0,61168.0,0.0872]
[1727917887676,0.36324884,61169.0,61161.0,0.03279]
[1727917887677,0.163497,61163.0,61162.0,0.0793]
[1727917889089,0.326979,61166.0,61162.0,0.0833]
[1727917889318,0.163495,61164.0,61162.0,0.0833]
[1727917889536,0.163495,61164.0,61163.0,0.02860352]
[1727917890950,0.163495,61164.0,61163.0,0.03060352]
[1727917891906,0.163495,61164.0,61163.0,0.03460352]
[1727917892417,0.02644934,61169.0,61164.0,0.163493]
[1727917892679,0.02644934,61169.0,61165.0,0.03724965]
[1727917892886,0.02644934,61169.0,61168.0,0.163484]
[1727917893113,0.02644934,61169.0,61168.0,0.24235315]
[1727917893349,0.02644934,61169.0,61168.0,0.271874]
[1727917893565,0.03845248,61169.0,61168.0,0.239084]
[1727917893793,0.02644934,61169.0,61168.0,0.239084]
[1727917894010,0.02644934,61169.0,61168.0,0.35873862]
[1727917894221,0.02644934,61169.0,61168.0,0.39152862]
[1727917894222,0.002818,61169.0,61168.0,0.39152862]
[1727917894443,0.000818,61169.0,61168.0,0.39152862]
[1727917894668,0.002818,61169.0,61168.0,0.47203862]
[1727917894886,0.002818,61169.0,61168.0,0.47703862]
[1727917895098,0.000818,61169.0,61168.0,0.50482862]
[1727917895532,0.002818,61169.0,61168.0,0.52782862]
[1727917895970,0.001818,61169.0,61168.0,0.51682862]
[1727917896185,0.002818,61169.0,61168.0,0.52882862]
[1727917896621,0.001818,61169.0,61168.0,0.51682862]
[1727917897099,0.002818,61169.0,61168.0,0.52882862]
[1727917897352,0.002818,61169.0,61168.0,0.51682862]
[1727917897353,0.001818,61169.0,61168.0,0.51682862]
[1727917897601,0.001818,61169.0,61168.0,0.92731177]
[1727917897602,0.000818,61169.0,61168.0,0.92731177]
[1727917897816,0.000818,61186.0,61183.0,0.1789]
[1727917897817,0.24529644,61184.0,61183.0,0.1789]
[1727917898039,0.40873744,61184.0,61183.0,0.09839]
[1727917898258,0.1755052,61184.0,61183.0,0.0805]
[1727917900480,0.1755052,61184.0,61183.0,0.0825]
[1727917900698,0.20113097,61184.0,61183.0,0.0805]
[1727917900963,0.20113097,61184.0,61183.0,0.0825]
[1727917901180,0.20113097,61184.0,61183.0,0.09375]
[1727917901410,0.20113097,61184.0,61183.0,0.09175]
[1727917901858,0.20113097,61184.0,61183.0,0.09475]
[1727917902542,0.20113097,61184.0,61183.0,0.09175]
[1727917903196,0.20113097,61184.0,61183.0,0.08875]
[1727917903441,0.20113097,61184.0,61183.0,0.09075]
[1727917903896,0.20113097,61184.0,61183.0,0.08875]
[1727917904130,0.20113097,61184.0,61183.0,0.09175]
[1727917904567,0.20113097,61184.0,61183.0,0.09375]
[1727917905279,0.20113097,61184.0,61183.0,0.09175]
[1727917905490,0.1755052,61184.0,61183.0,0.09475]
[1727917906574,0.0120642,61184.0,61183.0,0.09475]
[1727917906792,0.1755052,61184.0,61183.0,0.09475]
[1727917907006,0.163441,61184.0,61183.0,0.09475]
[1727917907448,0.17554302,61184.0,61183.0,0.09475]
[1727917908629,0.01210202,61184.0,61183.0,0.09475]
[1727917908883,0.02562474,61184.0,61183.0,0.18485]
[1727917909115,0.18906574,61184.0,61183.0,0.18485]
[1727917909349,0.03774743,61184.0,61183.0,0.348294]
[1727917909578,0.03774743,61184.0,61183.0,0.18485]
[1727917909814,0.01212269,61184.0,61183.0,0.18485]
[1727917910038,0.17556369,61184.0,61183.0,0.18485]
[1727917910268,0.163441,61184.0,61183.0,0.18485]
[1727917910548,0.1758198,61184.0,61183.0,0.18485]
[1727917912460,0.1766378,61184.0,61183.0,0.0865]
[1727917913435,0.1766378,61184.0,61183.0,0.0835]
[1727917913727,0.20226301,61184.0,61183.0,0.0835]
[1727917913922,0.20226301,61184.0,61183.0,0.0845]
[1727917914175,0.20226301,61184.0,61183.0,0.08995]
[1727917914402,0.20526301,61184.0,61183.0,0.08995]
[1727917914864,0.20226301,61184.0,61183.0,0.08995]
[1727917915348,0.20226301,61184.0,61183.0,0.09095]
[1727917917032,0.1766378,61184.0,61183.0,0.09095]
[1727917917513,0.1766378,61184.0,61183.0,0.254394]
[1727917917514,0.0131968,61184.0,61183.0,0.254394]
[1727917917741,0.000818,61184.0,61183.0,0.34906234]
[1727917917965,0.000818,61184.0,61183.0,0.345794]
[1727917918232,0.01112981,61184.0,61183.0,0.368794]
[1727917918462,0.000818,61184.0,61183.0,0.368794]
[1727917918942,0.000818,61184.0,61183.0,0.401584]
[1727917919705,0.32684,61193.0,61183.0,0.401584]
[1727917919706,0.24529644,61212.0,61193.0,0.023]
[1727917919958,0.24529644,61212.0,61199.0,0.186401]
[1727917920225,0.24529644,61212.0,61199.0,0.35806801]
[1727917920461,0.24529644,61212.0,61199.0,0.387591]
[1727917920691,0.24529644,61212.0,61199.0,0.54182805]
[1727917921175,0.24529644,61212.0,61199.0,0.0763]
[1727917921176,0.164216,61200.0,61199.0,0.0763]
[1727917921407,0.001818,61200.0,61199.0,0.0893]
[1727917921637,0.04640699,61200.0,61199.0,0.0893]
[1727917921876,0.02643465,61200.0,61199.0,0.0763]
[1727917922104,0.04059093,61200.0,61199.0,0.0833]
[1727917922337,0.04159093,61200.0,61199.0,0.09163]
[1727917922566,0.04159093,61200.0,61199.0,0.10563]
[1727917922843,0.04639721,61200.0,61199.0,0.09163]
[1727917923064,0.04639721,61200.0,61199.0,0.09663]
[1727917923287,0.04639721,61200.0,61199.0,0.09163]
[1727917923513,0.04539721,61200.0,61199.0,0.08463]
[1727917923735,0.04539721,61200.0,61199.0,0.09263]
[1727917924202,0.01978056,61200.0,61199.0,0.08763]
[1727917924431,0.01497818,61200.0,61199.0,0.08763]
[1727917924917,0.01497818,61200.0,61199.0,0.09063]
[1727917925144,0.0196905,61200.0,61199.0,0.09063]
[1727917925376,0.000818,61200.0,61199.0,0.09063]
[1727917925603,0.0196905,61200.0,61199.0,0.09063]
[1727917925825,0.000818,61200.0,61199.0,0.09063]
[1727917926062,0.01497237,61200.0,61199.0,0.09063]
[1727917926289,0.000818,61200.0,61199.0,0.09063]
[1727917926562,0.01497428,61200.0,61199.0,0.254031]
[1727917926792,0.0150291,61200.0,61199.0,0.09063]
[1727917927014,0.000818,61200.0,61199.0,0.09063]
[1727917927253,0.04064735,61200.0,61199.0,0.09063]
[1727917927491,0.000818,61200.0,61199.0,0.09063]
[1727917927727,0.01498013,61200.0,61199.0,0.09063]
[1727917928420,0.01498013,61200.0,61199.0,0.254031]
[1727917928674,0.01498013,61200.0,61199.0,0.09063]
[1727917928912,0.01498013,61200.0,61199.0,0.0823]
[1727917929166,0.17837813,61200.0,61199.0,0.006]
[1727917930160,0.17849418,61200.0,61199.0,0.006]
[1727917930413,0.28337399,61200.0,61199.0,0.006]
[1727917930652,0.27849108,61200.0,61199.0,0.006]
[1727917930897,0.27849108,61200.0,61199.0,0.003]
[1727917931166,0.326804,61199.0,61192.0,0.40871544]
[1727917931401,0.32681,61198.0,61192.0,0.24529644]
[1727917931644,0.163407,61197.0,61193.0,0.03268964]
[1727917931894,0.01427106,61197.0,61193.0,0.03268964]
[1727917932121,0.163414,61194.0,61193.0,0.03268964]
[1727917932367,0.01425718,61194.0,61193.0,0.03268964]
[1727917932834,0.025621,61197.0,61193.0,0.03268964]
[1727917932835,0.163412,61195.0,61193.0,0.03268964]
[1727917933097,0.01424942,61194.0,61193.0,0.03268964]
[1727917933324,0.01424177,61194.0,61193.0,0.03268964]
[1727917933812,0.01524177,61194.0,61193.0,0.03268964]
[1727917934541,0.01624177,61194.0,61193.0,0.03268964]
[1727917934777,0.17865577,61194.0,61193.0,0.03268964]
[1727917935231,0.17965577,61194.0,61193.0,0.03268964]
[1727917935473,0.01624177,61194.0,61193.0,0.03268964]
[1727917935709,0.01524177,61194.0,61193.0,0.03268964]
[1727917935933,0.17765577,61194.0,61193.0,0.03268964]
[1727917936170,0.17865577,61194.0,61193.0,0.03268964]
[1727917936647,0.01424177,61194.0,61193.0,0.03268964]
[1727917936882,0.01624177,61194.0,61193.0,0.04668964]
[1727917939214,0.17965577,61194.0,61193.0,0.04668964]
[1727917939492,0.17965577,61194.0,61193.0,0.014]
[1727917939740,0.27965577,61194.0,61193.0,0.014]
[1727917939955,0.27963942,61194.0,61193.0,0.014]
[1727917940207,0.32750162,61194.0,61193.0,0.007]
[1727917940428,0.263417,61193.0,61192.0,0.001634]
[1727917940653,0.3122792,61193.0,61192.0,0.001634]
[1727917940908,0.3312299,61193.0,61192.0,0.001634]
[1727917941138,0.2823677,61193.0,61192.0,0.001634]
[1727917942406,0.90905726,61193.0,61192.0,0.001634]
[1727917942643,0.91389035,61193.0,61192.0,0.001634]
[1727917942918,0.3357755,61178.0,61177.0,0.24529644]
[1727917943221,0.35468277,61178.0,61177.0,0.24529644]
[1727917943695,0.29122577,61178.0,61169.0,0.001634]
[1727917943924,0.163478,61170.0,61169.0,0.001634]
[1727917944190,0.01888678,61170.0,61169.0,0.001634]
[1727917944432,0.01888678,61170.0,61169.0,0.34208423]
[1727917944662,0.326923,61177.0,61169.0,0.338815]
[1727917944663,0.163469,61174.0,61169.0,0.338815]
[1727917944900,0.163469,61174.0,61170.0,0.25458674]
[1727917945126,0.01899278,61173.0,61170.0,0.09437797]
[1727917946173,0.01899278,61173.0,61170.0,0.09110874]
[1727917946415,0.01899278,61173.0,61172.0,0.163473]
[1727917946670,0.1,61186.0,61180.0,0.16345]
[1727917946671,0.1,61184.0,61180.0,0.16345]
[1727917946914,0.326856,61189.0,61181.0,0.243447]
[1727917947157,0.326863,61188.0,61182.0,0.05079655]
[1727917947396,0.163444,61183.0,61182.0,0.05079655]
[1727917947864,0.01895467,61183.0,61182.0,0.05079655]
[1727917948098,0.01895467,61183.0,61182.0,0.21424255]
[1727917948356,0.326846,61191.0,61182.0,0.05079655]
[1727917948593,0.09879347,61200.0,61182.0,0.05079655]
[1727917948594,0.01894426,61183.0,61182.0,0.54276955]
[1727917948839,0.04980573,61200.0,61182.0,0.54276955]
[1727917948840,0.014,61189.0,61182.0,0.21587655]
[1727917949060,0.163436,61186.0,61183.0,0.07149775]
[1727917949298,0.163433,61187.0,61183.0,0.07149775]
[1727917949549,0.163444,61183.0,61182.0,0.001634]
[1727917949806,0.18243402,61183.0,61182.0,0.001634]
[1727917950295,0.18443402,61183.0,61182.0,0.001634]
[1727917950766,0.21006087,61183.0,61182.0,0.001634]
[1727917951007,0.21006087,61183.0,61182.0,0.004634]
[1727917951244,0.04461687,61183.0,61182.0,0.081834]
[1727917951478,0.20906087,61183.0,61182.0,0.081834]
[1727917951714,0.20906087,61183.0,61182.0,0.001634]
[1727917952444,0.21006087,61183.0,61182.0,0.001634]
[1727917952694,0.20906087,61183.0,61182.0,0.001634]
[1727917953166,0.20906087,61183.0,61182.0,0.002634]
[1727917953455,0.20806087,61183.0,61182.0,0.001634]
[1727917953690,0.20906087,61183.0,61182.0,0.001634]
[1727917954157,0.39184149,61183.0,61182.0,0.001634]
[1727917954629,0.39284149,61183.0,61182.0,0.001634]
[1727917955125,0.38609055,61183.0,61182.0,0.001634]
[1727917955356,0.39968454,61183.0,61182.0,0.001634]
[1727917955857,2.62637237,61183.0,61182.0,0.001634]
[1727917956089,2.92285354,61183.0,61182.0,0.001634]
[1727917956330,2.06404554,61183.0,61182.0,0.002634]
[1727917956561,2.05704554,61183.0,61182.0,0.001634]
[1727917956806,2.06704554,61183.0,61182.0,0.001634]
[1727917957037,2.07904554,61183.0,61182.0,0.002634]
[1727917957310,2.06704554,61183.0,61182.0,0.001634]
[1727917957575,2.06704554,61183.0,61182.0,0.002634]
[1727917957576,2.22894148,61183.0,61182.0,0.002634]
[1727917957823,2.22894148,61183.0,61182.0,0.001634]
[1727917958053,2.21894148,61183.0,61182.0,0.001634]
[1727917958287,1.99627,61183.0,61182.0,0.002634]
[1727917958586,2.07042066,61183.0,61182.0,0.002634]
[1727917958822,1.81297566,61183.0,61182.0,0.002634]
[1727917959060,1.82697566,61183.0,61182.0,0.002634]
[1727917959327,1.82497566,61183.0,61182.0,0.002634]
[1727917959580,0.92627007,61183.0,61182.0,0.002634]
[1727917960326,0.99958183,61183.0,61182.0,0.002634]
[1727917961325,0.65672883,61183.0,61182.0,0.002634]
[1727917961563,0.5708485,61183.0,61182.0,0.002634]
[1727917961821,0.4714485,61183.0,61182.0,0.002634]
[1727917962069,0.5718675,61183.0,61182.0,0.002634]
[1727917963981,0.4863235,61183.0,61182.0,0.002634]
[1727917965167,0.30427707,61183.0,61182.0,0.002634]
[1727917967016,0.29827707,61183.0,61182.0,0.002634]
[1727917967731,0.37768564,61190.0,61182.0,0.002634]
[1727917967732,0.14650392,61197.0,61185.0,0.08]
[1727917968021,0.14650392,61197.0,61182.0,0.16582071]
[1727917968022,0.24529644,61196.0,61187.0,0.03279]
[1727917968297,0.000818,61200.0,61191.0,0.163422]
[1727917968546,0.02562145,61193.0,61191.0,0.163422]
[1727917968842,0.000818,61200.0,61191.0,0.163422]
[1727917970137,0.000818,61200.0,61191.0,0.34018752]
[1727917970381,0.000818,61200.0,61191.0,0.359922]
[1727917970661,0.001817,61192.0,61191.0,0.51604829]
[1727917970889,0.000818,61200.0,61193.0,0.246117]
[1727917971122,0.000818,61200.0,61193.0,0.301907]
[1727917971371,0.000818,61200.0,61193.0,0.30293289]
[1727917971629,0.000818,61200.0,61193.0,0.43974016]
[1727917971859,0.000818,61200.0,61193.0,0.43871427]
[1727917972585,0.001817,61194.0,61193.0,0.45171427]
[1727917973045,0.001817,61194.0,61193.0,0.46571427]
[1727917974297,0.001817,61194.0,61193.0,0.71101071]
[1727917974539,0.001817,61194.0,61193.0,0.46571427]
[1727917980034,0.000818,61200.0,61199.0,0.163401]
[1727917980285,0.000818,61211.0,61210.0,0.5037895]
[1727917980528,0.000818,61211.0,61210.0,0.331471]
[1727917981257,0.000818,61211.0,61210.0,0.5037895]
[1727917981506,0.000818,61211.0,61210.0,0.5365795]
[1727917981749,0.000818,61211.0,61210.0,0.67970579]
[1727917981997,0.001818,61211.0,61210.0,0.72670579]
[1727917982287,0.001818,61211.0,61210.0,0.71570579]
[1727917982541,0.000818,61211.0,61210.0,0.71570579]
[1727917982788,0.001818,61211.0,61210.0,0.72770579]
[1727917983775,0.001818,61211.0,61210.0,0.71470579]
[1727917984040,0.001818,61211.0,61210.0,0.1931]
[1727917984290,0.001818,61211.0,61210.0,0.1031]
[1727917984546,0.01481726,61211.0,61210.0,0.1031]
[1727917984757,0.001818,61211.0,61210.0,0.1031]
[1727917985013,0.0147832,61211.0,61210.0,0.0901]
[1727917985220,0.0137832,61211.0,61210.0,0.12809092]
[1727917985485,0.000818,61211.0,61210.0,0.14209092]
[1727917985727,0.000818,61211.0,61210.0,0.13409092]
[1727917985728,0.01378574,61211.0,61210.0,0.13409092]
[1727917985984,0.000818,61211.0,61210.0,0.13409092]
[1727917986464,0.000818,61211.0,61210.0,0.006]
[1727917986465,0.164187,61211.0,61210.0,0.006]
[1727917986928,0.164187,61211.0,61210.0,0.008]
[1727917986929,0.17717696,61211.0,61210.0,0.008]
[1727917987187,0.01380796,61211.0,61204.0,0.24529644]
[1727917987430,0.163381,61207.0,61205.0,0.05947653]
[1727917987649,0.163381,61207.0,61205.0,0.05818884]
[1727917987891,0.01294952,61206.0,61205.0,0.05818884]
[1727917988390,0.163388,61204.0,61203.0,0.0815]
[1727917988606,0.01294952,61206.0,61203.0,0.0815]
[1727917988607,0.163385,61205.0,61203.0,0.0815]
[1727917988856,0.01293322,61204.0,61203.0,0.0815]
[1727917989108,0.01293322,61204.0,61203.0,0.1511186]
[1727917989880,0.326749,61209.0,61203.0,0.1511186]
[1727917990100,0.01294103,61204.0,61203.0,0.1511186]
[1727917990327,0.163385,61205.0,61203.0,0.1511186]
[1727917990635,0.01280512,61204.0,61203.0,0.1571186]
[1727917990856,0.01280512,61204.0,61203.0,0.3205086]
[1727917991137,0.163385,61205.0,61203.0,0.163386]
[1727917991399,0.01279477,61204.0,61203.0,0.4898261]
[1727917991668,0.02561527,61212.0,61210.0,0.163371]
[1727917992137,0.000818,61219.0,61210.0,0.4111895]
[1727917992914,0.000818,61219.0,61210.0,0.4669795]
[1727917993394,0.02561026,61218.0,61210.0,0.4669795]
[1727917993628,0.02561026,61218.0,61210.0,0.295661]
[1727917993864,0.02561026,61218.0,61210.0,0.294661]
[1727917994338,0.02561026,61218.0,61210.0,0.308661]
[1727917994573,0.02561026,61218.0,61210.0,0.3240582]
[1727917995070,0.02561026,61218.0,61210.0,0.32592763]
[1727917995559,0.000818,61219.0,61210.0,0.32592763]
[1727917996095,0.000818,61219.0,61210.0,0.55634919]
[1727917996345,0.000818,61219.0,61218.0,0.16335]
[1727917996585,0.000818,61219.0,61218.0,0.26572019]
[1727917996846,0.01162208,61219.0,61218.0,0.26572019]
[1727917997140,0.01162208,61219.0,61218.0,0.3422434]
[1727917997141,0.000818,61219.0,61218.0,0.3422434]
[1727917997613,0.000818,61219.0,61218.0,0.3920334]
[1727917998385,0.000818,61219.0,61218.0,0.3750334]
[1727917998877,0.000818,61219.0,61218.0,0.3820334]
[1727917999839,0.000818,61219.0,61218.0,0.3920334]
[1727918000068,0.000818,61219.0,61218.0,0.3750334]
[1727918000328,0.000818,61219.0,61218.0,0.3890334]
[1727918000582,0.000818,61219.0,61218.0,0.4030334]
[1727918004497,0.000818,61219.0,61218.0,0.3472434]
[1727918005446,0.164165,61219.0,61218.0,0.028]
[1727918005676,0.000818,61219.0,61218.0,0.028]
[1727918005904,0.000818,61219.0,61218.0,0.014]
[1727918005905,0.0117476,61219.0,61218.0,0.014]
[1727918006145,0.000818,61219.0,61218.0,0.014]
[1727918006381,0.164165,61219.0,61218.0,0.05620864]
[1727918006615,0.17497243,61219.0,61218.0,0.014]
[1727918007110,0.43283606,61219.0,61218.0,0.002]
[1727918007400,0.163363,61213.0,61212.0,0.24529644]
[1727918007868,0.326738,61212.0,61206.0,0.03279]
[1727918008093,0.326738,61212.0,61206.0,0.1224593]
[1727918008094,0.163375,61209.0,61206.0,0.1224593]
[1727918008321,0.01077604,61211.0,61206.0,0.1224593]
[1727918008558,0.01077604,61211.0,61204.0,0.32819644]
[1727918008559,0.01089919,61208.0,61207.0,0.09874743]
[1727918008808,0.326723,61214.0,61207.0,0.09874743]
[1727918009035,0.01088885,61208.0,61207.0,0.09874743]
[1727918009265,0.163374,61210.0,61207.0,0.09874743]
[1727918009493,0.163374,61210.0,61204.0,0.65497144]
[1727918009494,0.326704,61218.0,61208.0,0.14539185]
[1727918009717,0.163374,61210.0,61208.0,0.14539185]
[1727918010471,0.163367,61212.0,61208.0,0.14539185]
[1727918010725,0.326717,61215.0,61210.0,0.163371]
[1727918011022,0.000818,61219.0,61213.0,0.163362]
[1727918011023,0.490054,61218.0,61213.0,0.163362]
[1727918011322,0.000818,61219.0,61215.0,0.079]
[1727918011568,0.000818,61219.0,61218.0,0.16335]
[1727918011791,0.000818,61219.0,61216.0,0.32831664]
[1727918011792,0.000818,61219.0,61216.0,0.163354]
[1727918012272,0.000818,61219.0,61217.0,0.163352]
[1727918012500,0.02642727,61219.0,61217.0,0.163352]
[1727918012767,0.02642727,61219.0,61209.0,0.0764]
[1727918013014,0.163357,61216.0,61213.0,0.24529644]
[1727918013268,0.326702,61218.0,61213.0,0.24529644]
[1727918013269,0.16336,61215.0,61213.0,0.24529644]
[1727918013499,0.16336,61215.0,61211.0,0.163367]
[1727918013727,0.326702,61218.0,61211.0,0.163367]
[1727918013970,0.02642727,61219.0,61209.0,0.17611245]
[1727918013971,0.17197224,61216.0,61209.0,0.17611245]
[1727918014204,0.163361,61214.0,61213.0,0.007]
[1727918014430,0.490083,61214.0,61213.0,0.007]
[1727918015306,0.326722,61214.0,61211.0,0.002]
[1727918015473,0.163366,61212.0,61211.0,0.002]
[1727918015679,0.163366,61212.0,61211.0,0.01]
[1727918015879,0.163366,61212.0,61211.0,0.002]
[1727918016287,0.163372,61210.0,61206.0,0.163382]
[1727918016620,0.326736,61212.0,61205.0,0.16318671]
[1727918016842,0.163372,61210.0,61206.0,0.163381]
[1727918017069,0.151872,61210.0,61206.0,0.163381]
[1727918017311,0.151872,61210.0,61207.0,0.11766234]
[1727918017559,0.163375,61209.0,61207.0,0.11766234]
[1727918017806,0.163377,61208.0,61207.0,0.11766234]
[1727918018253,0.326741,61211.0,61207.0,0.11766234]
[1727918018477,0.490112,61211.0,61208.0,0.04037488]
[1727918018725,0.17476132,61210.0,61208.0,0.04037488]
[1727918018970,0.01138932,61210.0,61208.0,0.04037488]
[1727918019433,0.01138767,61209.0,61208.0,0.04037488]
[1727918019660,0.01138767,61209.0,61208.0,0.04737488]
[1727918019872,0.163373,61210.0,61208.0,0.04037488]
[1727918020081,0.01152193,61209.0,61208.0,0.04037488]
[1727918020371,0.01152193,61209.0,61208.0,0.05000888]
[1727918020584,0.01152193,61209.0,61208.0,0.04200888]
[1727918020802,0.01152193,61209.0,61208.0,0.05700888]
[1727918022612,0.17489593,61209.0,61208.0,0.016634]
[1727918026952,0.01152193,61209.0,61208.0,0.262411]
[1727918027199,0.327514,61219.0,61208.0,0.13355396]
[1727918027200,0.000818,61219.0,61208.0,0.13355396]
[1727918027445,0.000818,61219.0,61209.0,0.08671365]
[1727918027446,0.163357,61216.0,61209.0,0.08671365]
[1727918027674,0.163359,61215.0,61210.0,0.163371]
[1727918027903,0.163359,61215.0,61211.0,0.10939327]
[1727918028626,0.163359,61215.0,61211.0,0.27276227]
[1727918028852,0.163356,61216.0,61211.0,0.27276227]
[1727918029078,0.326708,61217.0,61211.0,0.27276227]
[1727918029338,0.163359,61215.0,61212.0,0.09003519]
[1727918030714,0.163359,61215.0,61212.0,0.09503519]
[1727918030932,0.163359,61215.0,61212.0,0.10303519]
[1727918031156,0.326708,61217.0,61212.0,0.26640119]
[1727918031380,0.326708,61217.0,61213.0,0.08045443]
[1727918031605,0.163359,61215.0,61213.0,0.08045443]
[1727918032058,0.02561247,61216.0,61213.0,0.08045443]
[1727918032282,0.02561247,61216.0,61208.0,0.502086]
[1727918032283,0.163366,61213.0,61208.0,0.338709]
[1727918032507,0.163366,61212.0,61208.0,0.338709]
[1727918032728,0.163362,61214.0,61210.0,0.163371]
[1727918033165,0.163362,61214.0,61213.0,0.006]
[1727918033409,0.163362,61214.0,61210.0,0.163371]
[1727918033624,0.17483486,61214.0,61211.0,0.11520394]
[1727918034060,0.17483486,61214.0,61213.0,0.40865944]
[1727918034061,0.01147286,61214.0,61213.0,0.40865944]
[1727918034323,0.01147286,61214.0,61213.0,0.163363]
[1727918034580,0.000817,61215.0,61214.0,0.186361]
[1727918034844,0.000817,61215.0,61214.0,0.2692273]
[1727918035063,0.000817,61215.0,61214.0,0.4187298]
[1727918035332,0.000817,61215.0,61214.0,0.55983771]
[1727918035546,0.000817,61215.0,61214.0,0.57864498]
[1727918035831,0.000817,61215.0,61214.0,0.79021977]
[1727918036103,0.000817,61215.0,61214.0,0.74183169]
[1727918036348,0.000817,61215.0,61214.0,0.80018131]
[1727918036567,0.000817,61215.0,61214.0,0.80618131]
[1727918036792,0.000817,61215.0,61214.0,0.79018131]
[1727918037272,0.000817,61215.0,61214.0,0.81818131]
[1727918037495,0.000817,61215.0,61214.0,0.76983169]
[1727918037988,0.000817,61215.0,61214.0,0.76981529]
[1727918038246,0.000817,61215.0,61214.0,0.75102442]
[1727918038495,0.000817,61215.0,61214.0,0.84202442]
[1727918038735,0.000817,61215.0,61214.0,0.90435403]